bitfinex/quotes_SOLUSD_20220130
["timestamp","ask_amount","ask_price","bid_price","bid_amount"]
[1643573668633,2.95669142,92.589,92.456,70.2461]
[1643573668835,2.95669142,92.589,92.457,35.21871688]
[1643573669034,2.95669142,92.589,92.457,37.27547538]
[1643573669234,0.25,92.588,92.457,37.27547538]
[1643573669740,2.95669142,92.587,92.457,37.27547538]
[1643573669935,108.2,92.559,92.457,35.21871688]
[1643573670241,12.97,92.55,92.43,376.93936408]
[1643573670442,12.97,92.55,92.43,374.88260558]
[1643573670644,2.95669142,92.549,92.43,374.88260558]
[1643573670842,16.235,92.52,92.43,374.88260558]
[1643573671042,108.2,92.519,92.43,374.88260558]
[1643573671338,108.2,92.519,92.431,35.73276994]
[1643573672241,16.235,92.5,92.431,35.73276994]
[1643573672839,16.235,92.5,92.391,22.9808]
[1643573673645,108.2,92.499,92.391,22.9808]
[1643573673838,108.45,92.499,92.392,34.83934038]
[1643573674242,16.235,92.5,92.393,2.0567585]
[1643573674440,16.232,92.52,92.4,12.97]
[1643573674646,12.97,92.56,92.41,6.0]
[1643573674848,12.97,92.56,92.411,45.89780087]
[1643573675246,12.97,92.56,92.411,47.95455937]
[1643573675442,12.97,92.56,92.412,2.0567585]
[1643573675846,12.97,92.56,92.413,0.25]
[1643573676049,12.97,92.56,92.422,6.0]
[1643573676249,16.336,92.617,92.435,0.32498312]
[1643573676450,4.39501795,92.622,92.435,0.32498312]
[1643573676643,12.97,92.6,92.45,12.97]
[1643573676846,12.97,92.6,92.452,43.31620954]
[1643573677043,12.97,92.6,92.462,6.0]
[1643573677445,15.42669142,92.6,92.463,0.25]
[1643573677642,15.42669142,92.6,92.471,37.57109884]
[1643573677845,0.25,92.599,92.472,0.25]
[1643573678043,0.25,92.599,92.481,6.0]
[1643573678245,0.25,92.599,92.482,108.2]
[1643573678444,0.25,92.599,92.482,108.45]
[1643573678643,21.38309499,92.626,92.493,45.61297749]
[1643573678845,4.39501795,92.63,92.494,25.1896]
[1643573679044,20.60701795,92.63,92.504,114.2]
[1643573679244,16.212,92.63,92.505,23.0547]
[1643573679444,16.212,92.63,92.511,33.54857715]
[1643573679648,16.212,92.63,92.52,12.97]
[1643573679844,16.212,92.63,92.521,0.25]
[1643573680546,0.25,92.629,92.521,0.25]
[1643573681148,13.962,92.63,92.521,0.25]
[1643573681357,13.962,92.63,92.511,33.54857715]
[1643573681551,2.95669142,92.628,92.511,33.54857715]
[1643573681750,16.218,92.6,92.511,33.54857715]
[1643573682149,2.95669142,92.599,92.511,33.54857715]
[1643573682350,12.97,92.59,92.511,33.54857715]
[1643573682749,2.95669142,92.589,92.511,33.54857715]
[1643573683949,4.39501795,92.613,92.511,33.54857715]
[1643573683950,2.95669142,92.6,92.511,33.54857715]
[1643573684152,2.95669142,92.613,92.512,0.25]
[1643573684551,10.65973387,92.626,92.512,0.25]
[1643573684751,10.65973387,92.626,92.512,73.7038]
[1643573685350,4.39501795,92.636,92.512,73.7038]
[1643573685552,16.214,92.62,92.512,73.7038]
[1643573685952,2.95669142,92.635,92.512,73.7038]
[1643573686954,29.181,92.64,92.52,29.179]
[1643573687355,4.39501795,92.645,92.521,0.25]
[1643573687557,4.39501795,92.658,92.531,108.2]
[1643573687762,4.39501795,92.658,92.532,66.32218426]
[1643573687961,4.39501795,92.658,92.532,66.57218426]
[1643573688363,7.93076861,92.665,92.532,66.57218426]
[1643573688579,16.207,92.66,92.54,16.206]
[1643573688780,16.207,92.66,92.541,0.25]
[1643573688977,16.207,92.66,92.541,108.45]
[1643573689377,2.95669142,92.659,92.541,0.25]
[1643573689579,2.95669142,92.659,92.532,66.32218426]
[1643573689779,16.209,92.65,92.532,66.32218426]
[1643573691280,7.93076861,92.659,92.541,108.2]
[1643573691681,7.93076861,92.659,92.542,0.25]
[1643573691881,2.95669142,92.658,92.542,0.25]
[1643573692282,2.09658035,92.657,92.542,0.25]
[1643573692481,21.52702818,92.657,92.532,66.32218426]
[1643573692683,2.95669142,92.656,92.532,66.32218426]
[1643573693084,16.209,92.65,92.532,66.32218426]
[1643573693886,16.209,92.65,92.533,0.25]
[1643573697086,4.39501795,92.671,92.533,108.45]
[1643573697387,16.205,92.67,92.542,6.0]
[1643573697587,16.205,92.67,92.551,39.57183124]
[1643573697788,16.205,92.67,92.552,70.8883]
[1643573698487,16.205,92.67,92.552,70.6383]
[1643573698689,29.175,92.67,92.552,70.6383]
[1643573698889,16.214,92.64,92.553,0.25]
[1643573699090,16.214,92.64,92.552,70.6383]
[1643573700790,16.214,92.64,92.551,39.57183124]
[1643573700989,12.97,92.63,92.551,39.57183124]
[1643573701190,16.216,92.61,92.551,39.57183124]
[1643573701993,16.216,92.61,92.514,72.2912]
[1643573702192,16.216,92.61,92.514,24.4007]
[1643573702393,29.186,92.61,92.514,24.4007]
[1643573702892,29.186,92.61,92.515,43.69232875]
[1643573703293,0.2,93.007,92.515,43.69232875]
[1643573703294,29.182,92.63,92.516,108.45]
[1643573703494,16.212,92.63,92.52,12.97]
[1643573703894,16.212,92.63,92.521,0.25]
[1643573704698,108.2,92.629,92.521,0.25]
[1643573704899,16.212,92.63,92.521,0.25]
[1643573705300,16.212,92.63,92.52,12.97]
[1643573705899,16.212,92.63,92.517,24.4092]
[1643573706099,29.182,92.63,92.517,24.4092]
[1643573707299,29.182,92.63,92.49,539.08671859]
[1643573707500,29.182,92.63,92.49,526.11671859]
[1643573707800,16.225,92.59,92.49,526.11671859]
[1643573708000,24.785,92.59,92.49,526.11671859]
[1643573708203,12.97,92.58,92.492,42.93355881]
[1643573709401,108.2,92.579,92.492,42.93355881]
[1643573710000,16.225,92.56,92.492,42.93355881]
[1643573710402,16.225,92.56,92.484,23.0836]
[1643573710602,16.225,92.56,92.451,24.5464]
[1643573711308,16.225,92.56,92.452,110.26196199]
[1643573711504,16.22,92.58,92.452,153.87324593]
[1643573711706,16.22,92.58,92.453,32.65741675]
[1643573711908,16.22,92.58,92.453,32.90741675]
[1643573712104,16.22,92.58,92.454,32.65741675]
[1643573712307,16.22,92.58,92.455,0.25]
[1643573712506,16.22,92.58,92.461,108.2]
[1643573712907,16.22,92.58,92.462,0.25]
[1643573714106,2.99580826,92.579,92.462,0.25]
[1643573714307,2.99580826,92.579,92.47,16.219]
[1643573714609,2.99580826,92.597,92.48,12.97]
[1643573714832,2.99507069,92.599,92.491,33.39551627]
[1643573715207,2.99507069,92.599,92.501,108.2]
[1643573715408,2.99507069,92.599,92.5,12.97]
[1643573715409,2.99507069,92.599,92.502,0.25]
[1643573715608,2.99507069,92.599,92.501,23.9972]
[1643573715814,16.217,92.59,92.501,23.9972]
[1643573716409,2.99580826,92.598,92.502,0.25]
[1643573716609,2.99580826,92.603,92.502,0.25]
[1643573716808,2.99580826,92.604,92.502,0.25]
[1643573717009,2.99580826,92.605,92.502,0.25]
[1643573717709,2.99514745,92.604,92.51,16.212]
[1643573717916,5.99095571,92.609,92.511,45.21117135]
[1643573718315,5.99095571,92.609,92.511,44.96117135]
[1643573718512,2.99514745,92.609,92.511,44.96117135]
[1643573718711,5.99095571,92.608,92.512,23.5416]
[1643573718912,2.99580826,92.607,92.512,23.5416]
[1643573719119,2.99580826,92.603,92.512,23.5416]
[1643573719311,2.99514745,92.609,92.512,23.5416]
[1643573719312,2.99580826,92.606,92.512,23.5416]
[1643573719511,2.99580826,92.608,92.52,16.211]
[1643573719712,2.99580826,92.615,92.52,16.211]
[1643573719911,2.99580826,92.618,92.52,16.211]
[1643573720114,2.99580826,92.615,92.52,16.211]
[1643573720311,2.99514745,92.619,92.521,0.25]
[1643573720513,2.99514745,92.619,92.531,0.31456748]
[1643573720713,2.99580826,92.632,92.531,0.31456748]
[1643573721018,2.99580826,92.649,92.551,40.29591761]
[1643573721211,4.39501795,92.675,92.552,108.2]
[1643573721212,2.99580826,92.652,92.552,108.2]
[1643573721414,2.99580826,92.657,92.56,0.30066179]
[1643573721617,2.99580826,92.663,92.57,12.97]
[1643573721916,2.99580826,92.665,92.571,36.05126309]
[1643573722117,2.99580826,92.666,92.572,108.2]
[1643573722351,2.99580826,92.666,92.58,16.2]
[1643573722750,2.9933016,92.678,92.58,16.2]
[1643573722751,2.99580826,92.661,92.58,16.2]
[1643573722951,2.99580826,92.671,92.581,108.45]
[1643573723148,2.99580826,92.672,92.581,108.45]
[1643573723355,2.99580826,92.675,92.581,108.45]
[1643573723557,2.99580826,92.677,92.58,16.2]
[1643573723751,2.99580826,92.674,92.581,0.25]
[1643573723950,2.99580826,92.678,92.59,16.198]
[1643573724252,2.99580826,92.679,92.591,42.2961477]
[1643573724451,2.99580826,92.688,92.592,108.2]
[1643573724649,2.99580826,92.703,92.593,45.9935]
[1643573724853,2.99580826,92.703,92.593,69.9876]
[1643573725049,2.99580826,92.716,92.593,69.9876]
[1643573725249,2.99580826,92.714,92.593,69.9876]
[1643573725649,2.99580826,92.719,92.593,69.9876]
[1643573726049,2.99580826,92.72,92.611,39.5076349]
[1643573726252,2.98144578,92.725,92.62,12.97]
[1643573726449,2.99580826,92.732,92.621,6.0]
[1643573726653,2.98144578,92.731,92.621,0.25]
[1643573726852,2.99580826,92.744,92.639,0.31680661]
[1643573727150,2.98144578,92.751,92.64,29.16]
[1643573727351,2.99580826,92.764,92.641,47.6388]
[1643573727550,0.5399453,92.766,92.651,114.2]
[1643573727551,2.97294941,92.765,92.651,114.2]
[1643573727750,0.5399453,92.766,92.66,12.97]
[1643573728352,2.99580826,92.761,92.66,12.97]
[1643573728552,2.99580826,92.761,92.652,35.78953381]
[1643573728754,2.99580826,92.755,92.652,35.78953381]
[1643573728951,0.5399453,92.766,92.652,35.78953381]
[1643573729152,0.5399453,92.766,92.66,16.187]
[1643573729351,0.5399453,92.766,92.662,6.0]
[1643573729756,0.5399453,92.766,92.663,0.25]
[1643573729954,0.5399453,92.766,92.67,6.0]
[1643573730160,2.99580826,92.787,92.68,12.97]
[1643573730364,2.99580826,92.809,92.7,16.179]
[1643573730555,22.6729,92.876,92.7,16.179]
[1643573730556,0.2,93.008,92.711,47.0]
[1643573730767,107.84,93.09,92.757,0.30678243]
[1643573730768,2.96395784,92.853,92.757,0.30678243]
[1643573730956,2.96395784,92.942,92.771,108.2]
[1643573731157,4.44593676,92.974,92.811,0.31752181]
[1643573731358,5.88263376,92.995,92.811,0.31752181]
[1643573731359,4.44593676,92.995,92.82,12.97]
[1643573731558,4.44593676,92.995,92.846,0.30963382]
[1643573731762,0.1,92.997,92.86,29.122]
[1643573731965,1.24,92.997,92.861,36.0227377]
[1643573732157,0.02656532,92.987,92.863,47.0]
[1643573732358,0.02656532,92.987,92.861,38.07493441]
[1643573732359,2.95669142,92.985,92.861,38.07493441]
[1643573732562,2.95669142,92.985,92.831,70.0549]
[1643573732563,12.97,92.98,92.831,70.0549]
[1643573732857,16.154,92.95,92.78,12.97]
[1643573733057,12.97,92.94,92.711,15.8723]
[1643573733257,12.97,92.94,92.744,2.04788641]
[1643573733457,12.97,92.94,92.763,0.31985004]
[1643573733658,16.57980239,92.949,92.774,2.04788641]
[1643573733859,4.62608044,92.979,92.78,16.166]
[1643573733860,16.169,92.89,92.78,16.166]
[1643573734060,12.97,92.96,92.79,12.97]
[1643573734258,1.14,92.947,92.791,34.10368322]
[1643573734658,1.14,92.947,92.791,36.15156963]
[1643573734858,16.16,92.92,92.8,16.162]
[1643573735057,16.16,92.92,92.8,29.132]
[1643573735259,16.16,92.92,92.801,2.04788641]
[1643573735660,16.16,92.92,92.791,33.85368322]
[1643573735958,16.171,92.89,92.791,33.85368322]
[1643573736958,16.162,92.91,92.8,16.163]
[1643573737158,15.662,92.91,92.8,16.163]
[1643573737761,15.662,92.91,92.801,0.25]
[1643573738160,16.158,92.93,92.811,25.44923369]
[1643573738362,16.158,92.93,92.812,0.25]
[1643573739164,16.158,92.93,92.83,16.158]
[1643573739363,16.155,92.95,92.831,34.10368322]
[1643573739561,16.155,92.95,92.831,36.15246124]
[1643573739961,16.155,92.95,92.832,2.04877802]
[1643573740161,53.84,92.98,92.832,2.04877802]
[1643573740362,53.84,92.98,92.851,25.44923369]
[1643573740562,16.151,92.97,92.851,25.44923369]
[1643573740764,0.02656532,92.987,92.855,0.32033984]
[1643573740963,0.02656532,92.987,92.86,12.97]
[1643573741169,0.02656532,92.987,92.86,12.887528]
[1643573741368,0.02656532,92.987,92.861,0.25]
[1643573741566,0.02656532,92.987,92.861,2.29877802]
[1643573741772,0.02656532,92.987,92.88,16.15]
[1643573741967,0.02656532,92.987,92.882,33.85368322]
[1643573742167,0.02656532,92.987,92.89,12.97]
[1643573742374,0.02656532,92.987,92.891,0.25]
[1643573742866,0.02656532,92.987,92.891,2.29877802]
[1643573743067,0.02656532,92.987,92.91,16.143]
[1643573743266,0.02656532,92.987,92.911,25.69923369]
[1643573743567,53.8,93.05,92.913,47.0]
[1643573743766,1.44752563,93.075,92.914,108.45]
[1643573743967,1.44752563,93.085,92.914,108.45]
[1643573744166,16.133,93.07,92.92,16.142]
[1643573744370,16.133,93.07,92.921,48.8702]
[1643573744569,16.133,93.07,92.93,12.97]
[1643573744766,16.133,93.07,92.931,33.7971179]
[1643573745171,16.133,93.07,92.931,35.84019908]
[1643573745366,16.129,93.09,92.945,0.31552243]
[1643573745566,0.08956394,93.117,92.986,0.30038477]
[1643573745766,0.08956394,93.117,92.99,12.97]
[1643573745966,0.08956394,93.117,92.991,69.6824]
[1643573746166,0.08956394,93.117,92.992,33.5471179]
[1643573746367,0.08956394,93.117,92.993,0.25]
[1643573746568,16.128,93.1,92.993,0.25]
[1643573747170,16.128,93.1,92.992,33.5471179]
[1643573747570,16.128,93.1,92.992,33.4645889]
[1643573748797,0.090142,92.961,92.96,12.97]
[1643573748996,0.090142,92.961,92.94,12.97]
[1643573749197,0.090142,92.961,92.933,24.3341]
[1643573749798,0.090142,92.961,92.934,34.08253765]
[1643573750398,0.002498,92.954,92.934,34.08253765]
[1643573750599,0.002498,92.954,92.92,12.97]
[1643573750798,0.000142,92.961,92.92,12.97]
[1643573751000,53.82,93.02,92.9,12.97]
[1643573751199,0.2,93.019,92.9,12.97]
[1643573751600,53.52,93.02,92.901,41.28120068]
[1643573752001,16.147,92.99,92.901,41.28120068]
[1643573754306,16.147,92.99,92.902,0.25]
[1643573754505,16.147,92.99,92.901,41.28120068]
[1643573755905,16.147,92.99,92.901,41.20206968]
[1643573756806,16.155,92.97,92.901,41.20206968]
[1643573757007,0.2,92.969,92.901,41.20206968]
[1643573757208,0.2,92.979,92.901,41.20206968]
[1643573757405,1.44752563,93.009,92.901,41.20206968]
[1643573757606,1.44752563,93.008,92.901,41.20206968]
[1643573758006,16.15,92.97,92.901,41.20206968]
[1643573758207,0.2,92.969,92.901,41.20206968]
[1643573759007,1.44752563,92.969,92.901,41.20206968]
[1643573759208,16.152,92.96,92.901,41.20206968]
[1643573759408,16.152,92.96,92.872,23.7328]
[1643573759409,0.2,92.959,92.872,23.7328]
[1643573759612,0.2,92.959,92.848,24.3701]
[1643573759812,1.44752563,92.961,92.853,0.25]
[1643573760008,1.44752563,92.958,92.853,0.25]
[1643573760209,1.44752563,92.958,92.831,24.3195]
[1643573760508,0.2,92.978,92.853,40.61246582]
[1643573760509,1.44752563,92.938,92.853,40.61246582]
[1643573760711,1.44752563,92.932,92.853,40.61246582]
[1643573760911,14.41752563,92.93,92.853,40.61246582]
[1643573761112,1.44752563,92.92,92.853,40.61246582]
[1643573761310,16.166,92.9,92.853,40.61246582]
[1643573761513,0.2,92.899,92.785,416.58754011]
[1643573761709,53.886,92.91,92.785,416.58754011]
[1643573761710,0.2,92.909,92.785,416.58754011]
[1643573761910,1.44752563,92.91,92.786,110.24385333]
[1643573762110,1.44752563,92.918,92.786,110.24385333]
[1643573762312,1.44752563,92.919,92.79,12.97]
[1643573762513,1.44752563,92.92,92.791,149.6392405]
[1643573762710,16.162,92.91,92.801,108.2]
[1643573762910,0.2,92.909,92.801,108.2]
[1643573763110,0.2,92.909,92.802,24.0993]
[1643573763309,1.44752563,92.917,92.802,24.0993]
[1643573763514,1.64752563,92.919,92.802,24.0993]
[1643573763714,1.44752563,92.917,92.802,24.0993]
[1643573763912,1.44752563,92.916,92.803,0.25]
[1643573764314,16.163,92.9,92.803,0.25]
[1643573764511,0.2,92.899,92.803,0.25]
[1643573764711,1.44752563,92.92,92.804,2.03823764]
[1643573764914,1.44752563,92.934,92.81,12.97]
[1643573765311,0.2,92.969,92.811,2.28823764]
[1643573765312,1.44752563,92.942,92.811,2.28823764]
[1643573765512,16.157,92.93,92.83,16.157]
[1643573765711,16.157,92.93,92.831,38.25466521]
[1643573765712,0.2,92.929,92.831,38.25466521]
[1643573765913,0.2,92.929,92.831,38.50466521]
[1643573767112,0.2,92.929,92.84,16.156]
[1643573767342,0.2,92.929,92.841,0.25]
[1643573767713,1.44752563,92.937,92.841,2.28823764]
[1643573767917,1.44752563,92.953,92.85,12.97]
[1643573768113,1.44752563,92.949,92.863,0.32421028]
[1643573768315,1.44752563,92.961,92.863,0.32421028]
[1643573768514,1.44752563,92.965,92.871,33.45352069]
[1643573768714,1.44752563,92.97,92.871,33.45352069]
[1643573768915,1.44752563,92.965,92.872,2.28823764]
[1643573769114,1.44752563,92.971,92.873,24.5162]
[1643573769314,1.44752563,92.971,92.874,0.25]
[1643573769514,1.44752563,92.974,92.874,0.25]
[1643573769915,1.44752563,92.976,92.874,0.25]
[1643573770119,4.44593676,93.024,92.874,0.25]
[1643573770120,1.44752563,92.975,92.88,16.147]
[1643573770316,1.44752563,92.972,92.89,12.97]
[1643573770517,1.44752563,92.97,92.891,25.3811709]
[1643573770720,1.44752563,92.97,92.891,25.6311709]
[1643573771118,1.44752563,92.969,92.891,25.3811709]
[1643573771320,1.64752563,92.969,92.891,25.3811709]
[1643573771521,1.44752563,92.962,92.891,25.3811709]
[1643573771719,1.44752563,92.96,92.891,25.3811709]
[1643573771918,0.2,92.989,92.891,25.3811709]
[1643573771919,1.44752563,92.959,92.891,25.3811709]
[1643573772319,1.44752563,92.958,92.891,25.3811709]
[1643573772519,1.44752563,92.954,92.891,25.3811709]
[1643573772723,1.44752563,92.951,92.891,25.3811709]
[1643573773120,1.44752563,92.945,92.891,25.3811709]
[1643573773522,1.44752563,92.943,92.873,24.5162]
[1643573773722,4.44593676,93.003,92.863,13.16]
[1643573773723,1.44752563,92.932,92.863,13.16]
[1643573773921,0.31205391,93.01,92.863,13.16]
[1643573773922,16.161,92.92,92.863,13.16]
[1643573774125,0.2,92.919,92.863,13.16]
[1643573774423,1.44752563,92.92,92.863,13.16]
[1643573774424,1.44752563,92.92,92.864,33.41274363]
[1643573774623,1.44752563,92.918,92.864,33.41274363]
[1643573774856,1.44752563,92.917,92.864,33.41274363]
[1643573775049,1.44752563,92.92,92.864,33.41274363]
[1643573775251,1.44752563,92.923,92.864,33.41274363]
[1643573775650,1.44752563,92.924,92.864,33.41274363]
[1643573775851,1.44752563,92.926,92.864,33.41274363]
[1643573776050,1.44752563,92.927,92.864,33.41274363]
[1643573776251,1.44752563,92.926,92.864,33.41274363]
[1643573776655,1.44752563,92.934,92.864,33.41274363]
[1643573776855,1.44752563,92.936,92.865,108.45]
[1643573777053,1.44752563,92.94,92.865,108.2]
[1643573777253,1.44752563,92.938,92.866,0.25]
[1643573777454,1.44752563,92.938,92.871,108.2]
[1643573777855,0.2,92.979,92.872,0.25]
[1643573777856,1.44752563,92.931,92.872,0.25]
[1643573778454,1.44752563,92.93,92.872,0.25]
[1643573778654,1.44752563,92.932,92.872,0.25]
[1643573778854,1.44752563,92.928,92.866,0.25]
[1643573779054,1.44752563,92.927,92.866,0.25]
[1643573779255,1.44752563,92.926,92.866,0.25]
[1643573779655,1.44752563,92.928,92.866,0.25]
[1643573779854,1.44752563,92.927,92.866,0.25]
[1643573780255,1.44752563,92.927,92.866,108.45]
[1643573780656,1.44752563,92.926,92.866,108.45]
[1643573780858,1.44752563,92.93,92.866,108.45]
[1643573781057,1.44752563,92.935,92.866,108.2]
[1643573781255,1.44752563,92.933,92.867,0.25]
[1643573781461,0.94752563,92.932,92.866,108.2]
[1643573781660,0.94752563,92.932,92.865,22.5475]
[1643573781661,0.2,92.979,92.865,22.5475]
[1643573781857,12.97,92.98,92.865,22.5475]
[1643573782055,16.157,92.93,92.865,22.5475]
[1643573782255,0.2,92.929,92.865,22.5475]
[1643573782455,4.44593676,92.968,92.866,47.0]
[1643573782655,11.85583136,93.059,92.866,47.0]
[1643573782656,4.44593676,92.99,92.866,47.0]
[1643573782954,4.44593676,92.99,92.865,22.5475]
[1643573782955,3.66626118,92.983,92.865,22.5475]
[1643573783356,3.66626118,92.983,92.866,0.25]
[1643573783556,3.66626118,92.983,92.865,22.5475]
[1643573783857,17.41593676,92.99,92.865,22.5475]
[1643573783858,4.44593676,92.987,92.865,22.5475]
[1643573784056,16.155,92.96,92.866,22.837]
[1643573784257,16.155,92.96,92.867,0.25]
[1643573784460,108.2,92.959,92.866,22.837]
[1643573784957,108.2,92.959,92.864,33.41274363]
[1643573785259,16.156,92.94,92.864,33.41274363]
[1643573787259,16.153,92.96,92.865,0.25]
[1643573787458,16.153,92.96,92.865,24.2338]
[1643573787659,0.2,92.959,92.865,24.2338]
[1643573787859,0.2,92.969,92.865,24.2338]
[1643573789061,16.154,92.95,92.865,24.2338]
[1643573789261,0.2,92.949,92.865,24.2338]
[1643573790461,16.155,92.94,92.865,24.2338]
[1643573790663,0.2,92.939,92.865,24.2338]
[1643573790867,0.2,92.939,92.81,12.97]
[1643573791063,12.97,92.95,92.802,47.1536]
[1643573791262,2.95669142,92.938,92.802,47.1536]
[1643573791462,0.2,92.939,92.802,47.1536]
[1643573791863,0.2,92.939,92.834,35.74687]
[1643573792063,16.16,92.92,92.834,35.74687]
[1643573792261,0.2,92.919,92.834,35.74687]
[1643573792661,31.2305946,92.997,92.834,35.74687]
[1643573792662,0.2,92.929,92.834,35.74687]
[1643573792862,31.2305946,92.997,92.835,2.06982764]
[1643573792863,0.2,92.959,92.835,2.06982764]
[1643573793062,4.44593676,92.97,92.836,46.2908]
[1643573793262,4.44593676,92.97,92.837,108.45]
[1643573793663,4.44593676,92.97,92.837,0.25]
[1643573793963,16.153,92.96,92.836,46.2908]
[1643573794163,53.846,92.97,92.836,46.2908]
[1643573794164,0.2,92.959,92.836,46.2908]
[1643573794363,3.66626118,92.959,92.836,46.2908]
[1643573794563,12.97,92.96,92.836,46.2908]
[1643573794764,0.2,92.959,92.836,46.2908]
[1643573794963,16.162,92.93,92.836,46.2908]
[1643573795164,0.2,92.929,92.836,46.2908]
[1643573795364,108.4,92.939,92.836,46.2908]
[1643573795565,0.2,92.938,92.836,46.2908]
[1643573795765,0.2,92.939,92.837,0.25]
[1643573796068,0.2,92.939,92.837,2.31982764]
[1643573796264,4.44593676,92.97,92.84,16.157]
[1643573796466,4.44593676,92.97,92.843,0.30126656]
[1643573796664,0.2,92.979,92.843,0.30126656]
[1643573796864,0.2,92.979,92.844,2.06982764]
[1643573797264,0.2,92.979,92.845,0.25]
[1643573797464,16.151,92.97,92.845,0.25]
[1643573797665,0.2,92.969,92.846,2.06982764]
[1643573797867,0.2,92.979,92.851,23.08782159]
[1643573798268,53.847,92.97,92.851,23.08782159]
[1643573798467,6.18068512,92.969,92.852,24.4208]
[1643573798872,4.44593676,92.961,92.852,24.4208]
[1643573799969,16.152,92.96,92.852,24.4208]
[1643573800172,53.856,92.95,92.852,24.4208]
[1643573800375,0.2,92.949,92.852,24.4208]
[1643573800575,4.44593676,92.959,92.851,23.08782159]
[1643573800775,12.97,92.95,92.851,23.08782159]
[1643573800976,2.95669142,92.948,92.851,23.08782159]
[1643573801200,108.4,92.949,92.79,12.97]
[1643573801398,4.44593676,92.937,92.79,12.97]
[1643573801998,16.157,92.93,92.8,16.163]
[1643573802198,0.2,92.929,92.828,43.32453043]
[1643573802598,4.44593676,92.936,92.829,2.08388132]
[1643573802799,4.44593676,92.936,92.83,12.97]
[1643573803098,0.2,92.945,92.83,12.97]
[1643573803099,0.2,92.945,92.831,108.2]
[1643573803298,4.44593676,92.961,92.862,15.51016116]
[1643573803498,4.44593676,92.97,92.862,15.51016116]
[1643573804098,4.44593676,92.97,92.863,0.25]
[1643573804299,58.29193676,92.97,92.87,16.153]
[1643573804498,0.2,92.969,92.87,29.123]
[1643573804700,4.44593676,92.979,92.871,108.45]
[1643573804899,4.44593676,92.979,92.871,0.25]
[1643573805101,4.44593676,92.979,92.872,0.25]
[1643573805700,4.44593676,92.983,92.872,0.25]
[1643573806100,53.841,92.98,92.88,16.151]
[1643573806303,0.2,92.979,92.881,43.57453043]
[1643573807100,16.149,92.97,92.881,43.57453043]
[1643573807300,0.2,92.969,92.882,0.25]
[1643573807501,0.2,92.969,92.881,43.32453043]
[1643573808505,108.4,92.969,92.881,43.32453043]
[1643573808702,0.2,92.968,92.881,43.32453043]
[1643573809104,16.153,92.95,92.881,43.32453043]
[1643573809304,0.2,92.949,92.881,43.32453043]
[1643573809804,0.2,92.959,92.881,43.32453043]
[1643573810004,16.156,92.93,92.881,43.32453043]
[1643573810207,0.2,92.929,92.881,43.32453043]
[1643573810705,0.2,92.949,92.881,43.32453043]
[1643573811411,16.158,92.92,92.84,16.158]
[1643573811606,0.2,92.919,92.84,16.158]
[1643573811807,0.2,92.919,92.8,12.97]
[1643573812007,12.97,92.93,92.783,15.965]
[1643573812207,0.2,92.929,92.783,15.965]
[1643573812406,0.2,92.929,92.812,39.01967702]
[1643573812608,6.59006384,92.928,92.812,39.01967702]
[1643573813007,16.16,92.91,92.812,39.01967702]
[1643573813207,0.2,92.909,92.812,39.01967702]
[1643573813408,12.97,92.92,92.812,39.01967702]
[1643573813707,0.2,92.919,92.812,39.01967702]
[1643573814107,16.163,92.89,92.812,39.01967702]
[1643573814407,0.2,92.889,92.812,39.01967702]
[1643573815208,0.2,92.889,92.82,16.162]